[Event "WCCC U10 2019"]
[Site "Weifang"]
[Date "2019.08.21"]
[Round "1.7"]
[White "Jakhari, Ansh"]
[Black "Saiai, Purimprach"]
[Result "1-0"]
[ECO "C06"]
[WhiteElo "1878"]
[BlackElo "1269"]
[Annotator "NA"]
[PlyCount "121"]
[EventDate "2019.08.21"]
[EventType "swiss"]
[EventCountry "CHN"]
[SourceTitle "playchess.com"]
[Source "ChessBase"]
[SourceQuality "1"]
[TimeControl "40/5400+30:1800+30"]

1. e4 {[%emt 0:00:00]} e6 {[%emt 0:00:00]} 2. d4 {[%emt 0:00:00]} d5 {[%emt 0:01:24]} 3. Nd2 {[%emt 0:00:19]} Nf6 {[%emt 0:01:15]} 4. e5 {[%emt 0:00:16]} Nfd7 {[%emt 0:02:42]} 5. Bd3 {[%emt 0:00:35]} c5 {[%emt 0:02:00]} 6. c3 {[%emt 0:00:16]} Nc6 {[%emt 0:01:30]} 7. Ne2 {[%emt 0:01:05]} cxd4 {[%emt 0:06:47]} 8. cxd4 {[%emt 0:00:07]} f6 {[%emt 0:02:10]} 9. Nf4 {[%emt 0:17:01]} Nxd4 {[%emt 0:03:09]} 10. Qh5+ {[%emt 0:00:25]} Ke7 {[%emt 0:00:33]} 11. Ng6+ {[%emt 0:17:02]} hxg6 {[%emt 0:01:07]} 12. exf6+ {[%emt 0:00:26]} Nxf6 {[%emt 0:01:42]} 13. Qxh8 {[%emt 0:00:05]} Kf7 {[%emt 0:00:54]} 14. Qh4 {[%emt 0:01:41]} e5 {[%emt 0:03:54]} 15. Nf3 {[%emt 0:12:48]} Nxf3+ {[%emt 0:01:33]} 16. gxf3 {[%emt 0:00:04]} Qb6 {[%emt 0:07:07] C06: French Tarrasch: 3...Nf6 4 e5 Nfd7 5 Bd3 main lines} (16... Bf5 17. Bxf5 gxf5 18. Bg5 Qa5+ 19. Kf1 g6 20. Qh8 Qa6+ 21. Kg2 Re8 22. Rac1 Be7 23. Qh6 Qd6 24. Rc2 Bf8 25. Qh4 Bg7 26. Rhc1 Re7 27. Bxf6 Bxf6 {1-0 (51) Rublevsky,S (2702)-Volkov,S (2594) Dagomys 2009}) 17. O-O {[%emt 0:02:57]} Bd6 $146 {[%emt 0:03:34]} ({Predecessor:} 17... Be6 18. Bg5 Nh5 19. Rfe1 Bd6 20. Be3 d4 21. Bd2 Rh8 22. Qg5 Rh6 23. f4 e4 24. Bxe4 {1-0 (43) Arzumanian,G (2427)-Ljukin,S (2371) Simferopol 2003}) 18. Bg5 {[%emt 0:02:37]} Bf5 {[%emt 0:03:22]} 19. Bxf5 {[%emt 0:02:12]} gxf5 $14 {[%emt 0:00:15]} 20. Rad1 {[%emt 0:03:42]} Ke6 {[%emt 0:04:22]} 21. b3 {[%emt 0:05:05]} Rg8 {[%emt 0:05:16]} 22. Kh1 {[%emt 0:02:55]} Qd8 {[%emt 0:01:19]} 23. Rxd5 {[%emt 0:05:32]} Qc8 {[%emt 0:01:22]} 24. Rd2 {[%emt 0:06:42]} Rh8 {[%emt 0:07:43]} 25. Qc4+ {[%emt 0:02:33]} Qxc4 {[%emt 0:00:19]} 26. bxc4 {[%emt 0:00:03]} e4 {[%emt 0:01:29]} 27. Bxf6 {[%emt 0:02:15]} gxf6 {[%emt 0:00:26]} 28. fxe4 {[%emt 0:00:23]} Bxh2 {[%emt 0:02:27]} 29. exf5+ {[%emt 0:00:30]} Kxf5 {[%emt 0:00:20]} 30. Kg2 {[%emt 0:00:09]} Bf4 {[%emt 0:01:52]} 31. Rd7 {[%emt 0:00:34]} Rh2+ {[%emt 0:02:42]} 32. Kf3 {[%emt 0:00:22]} Rh3+ {[%emt 0:00:17]} 33. Ke2 {[%emt 0:00:05]} Ra3 {[%emt 0:00:20]} 34. Rxb7 {[%emt 0:00:58]} Rxa2+ {[%emt 0:00:09]} 35. Kd3 {[%emt 0:00:21]} Be5 {[%emt 0:01:19]} 36. c5 {[%emt 0:01:45]} Ra6 {[%emt 0:03:05]} 37. Rc1 {[%emt 0:00:45]} Rc6 {[%emt 0:01:20]} 38. Rxa7 {[%emt 0:00:39]} Bd6 {[%emt 0:01:57]} 39. Kd4 {[%emt 0:00:47]} Rc8 {[%emt 0:03:20]} 40. Kd5 {[%emt 0:00:16]} Be5 {[%emt 0:00:49]} 41. c6 {[%emt 0:30:35]} Kf4 {[%emt 0:31:41]} 42. Ke6 {[%emt 0:00:56]} Kf3 {[%emt 0:02:16]} 43. Kd7 {[%emt 0:00:52]} Rh8 {[%emt 0:01:45]} 44. c7 {[%emt 0:00:30]} Rh7+ {[%emt 0:00:57]} 45. Ke6 {[%emt 0:00:28]} Bxc7 {[%emt 0:03:23]} 46. Rcxc7 {[%emt 0:00:21]} Rxc7 {[%emt 0:00:24]} 47. Rxc7 {[%emt 0:00:05]} Kxf2 {[%emt 0:00:57]} 48. Kxf6 {[%emt 0:00:07]} Kf3 {[%emt 0:00:13]} 49. Kf5 {[%emt 0:00:05]} Ke3 {[%emt 0:00:20]} 50. Rd7 {[%emt 0:00:04]} Kf3 {[%emt 0:01:05]} 51. Rd3+ {[%emt 0:00:04]} Ke2 {[%emt 0:00:22]} 52. Ke4 {[%emt 0:00:03]} Kf2 {[%emt 0:00:50]} 53. Kf4 {[%emt 0:00:03]} Ke2 {[%emt 0:00:51]} 54. Rd4 {[%emt 0:00:05]} Kf2 {[%emt 0:00:06]} 55. Rd2+ {[%emt 0:00:04]} Ke1 {[%emt 0:00:34]} 56. Ke3 {[%emt 0:00:04]} Kf1 {[%emt 0:00:34]} 57. Kf3 {[%emt 0:00:04]} Kg1 {[%emt 0:00:49]} 58. Rf2 {[%emt 0:00:14]} Kh1 {[%emt 0:00:10]} 59. Kg3 {[%emt 0:00:06]} Kg1 {[%emt 0:00:16]} 60. Rf3 {[%emt 0:00:04]} Kh1 {[%emt 0:00:25]} 61. Rf1# {[%emt 0:00:07]} 1-0

[Event "WCCC U10 2019"]
[Site "Weifang"]
[Date "2019.08.21"]
[Round "1.8"]
[White "Do, Quang Minh"]
[Black "Yang, Jack"]
[Result "1-0"]
[ECO "A34"]
[WhiteElo "1265"]
[BlackElo "1835"]
[Annotator "NA"]
[PlyCount "73"]
[EventDate "2019.08.21"]
[EventType "swiss"]
[EventCountry "CHN"]
[SourceTitle "playchess.com"]
[Source "ChessBase"]
[SourceQuality "1"]
[TimeControl "40/5400+30:1800+30"]

1. e4 {[%emt 0:00:00]} c5 {[%emt 0:00:00]} 2. Nf3 {[%emt 0:00:00]} Nc6 {[%emt 0:00:01]} 3. c4 {[%emt 0:00:37]} e6 {[%emt 0:00:18]} 4. Nc3 {[%emt 0:00:09]} Nf6 {[%emt 0:00:21]} 5. d3 {[%emt 0:00:21]} d6 {[%emt 0:05:40]} 6. Be3 {[%emt 0:00:39]} e5 {[%emt 0:02:10]} 7. Be2 {[%emt 0:01:35]} Nd4 {[%emt 0:04:20]} 8. h3 {[%emt 0:02:19]} Be7 {[%emt 0:01:31]} 9. O-O {[%emt 0:00:34]} O-O {[%emt 0:01:12]} 10. Nd5 {[%emt 0:04:34]} Nxd5 {[%emt 0:00:27]} 11. cxd5 {[%emt 0:00:43]} f5 {[%emt 0:07:35]} 12. Bxd4 {[%emt 0:02:42]} cxd4 {[%emt 0:01:26]} 13. Qb3 {[%emt 0:00:45]} f4 $11 {[%emt 0:04:32]} (13... Bg5 $15) 14. Rac1 {[%emt 0:02:37]} Kh8 {[%emt 0:01:31]} 15. Rc2 {[%emt 0:11:13]} g5 {[%emt 0:02:12]} 16. Nh2 {[%emt 0:00:59]} Qe8 {[%emt 0:07:32]} 17. Rfc1 {[%emt 0:04:43]} b6 {[%emt 0:04:26]} 18. Rc7 {[%emt 0:11:49]} Bd7 {[%emt 0:08:34]} 19. Rb7 {[%emt 0:04:16]} Bd8 {[%emt 0:06:19]} 20. Qb4 {[%emt 0:04:28]} Bc8 {[%emt 0:01:02]} 21. Rxc8 {[%emt 0:01:45]} Rxc8 {[%emt 0:00:10]} 22. Qxd6 {[%emt 0:00:06]} Rc1+ {[%emt 0:04:54]} 23. Nf1 {[%emt 0:00:14]} Rc8 {[%emt 0:05:47]} 24. Bh5 {[%emt 0:00:18]} Bc7 {[%emt 0:04:28]} 25. Rxc7 {[%emt 0:01:43]} Qd8 {[%emt 0:02:34]} 26. Qxe5+ {[%emt 0:00:26]} Qf6 {[%emt 0:01:04]} 27. Qxf6+ {[%emt 0:00:09]} Rxf6 {[%emt 0:00:06]} 28. Rxc8+ {[%emt 0:00:03]} Kg7 {[%emt 0:00:07]} 29. e5 {[%emt 0:00:19]} Rf5 {[%emt 0:00:07]} 30. e6 {[%emt 0:00:11]} Rxd5 {[%emt 0:00:27]} 31. e7 {[%emt 0:00:11]} Re5 {[%emt 0:00:04]} 32. e8=Q {[%emt 0:00:08]} Rxe8 {[%emt 0:00:04]} 33. Bxe8 {[%emt 0:00:09]} f3 {[%emt 0:00:06]} 34. Rc7+ {[%emt 0:00:09]} Kh6 {[%emt 0:00:05]} 35. Ng3 {[%emt 0:00:10]} g4 {[%emt 0:00:10]} 36. h4 {[%emt 0:00:15]} fxg2 {[%emt 0:00:16]} 37. Nf5# {[%emt 0:00:05]} 1-0

[Event "WCCC U10 2019"]
[Site "Weifang"]
[Date "2019.08.21"]
[Round "1.9"]
[White "Meng, Yihan"]
[Black "Dulguun Sukhbaatar"]
[Result "1-0"]
[ECO "B22"]
[WhiteElo "1793"]
[BlackElo "1242"]
[Annotator "NA"]
[PlyCount "147"]
[EventDate "2019.08.21"]
[EventType "swiss"]
[EventCountry "CHN"]
[SourceTitle "playchess.com"]
[Source "ChessBase"]
[SourceQuality "1"]
[TimeControl "40/5400+30:1800+30"]

1. e4 {[%emt 0:00:00]} c5 {[%emt 0:00:00]} 2. Nf3 {[%emt 0:00:00]} e6 {[%emt 0:00:00]} 3. c3 {[%emt 0:00:00]} d5 {[%emt 0:00:13]} 4. exd5 {[%emt 0:00:00]} exd5 {[%emt 0:00:08]} 5. d4 {[%emt 0:00:00]} Nf6 {[%emt 0:00:21]} 6. Be3 {[%emt 0:00:40]} Nbd7 {[%emt 0:01:06]} 7. Be2 {[%emt 0:00:30]} Be7 {[%emt 0:00:39]} 8. O-O {[%emt 0:00:31]} O-O {[%emt 0:00:07]} 9. dxc5 {[%emt 0:00:21]} Nxc5 {[%emt 0:00:37]} 10. Nbd2 {[%emt 0:00:18]} Nfe4 {[%emt 0:00:33]} 11. Nb3 {[%emt 0:00:36]} b6 {[%emt 0:01:50]} 12. Nfd4 {[%emt 0:01:20]} Bd6 {[%emt 0:06:16]} 13. Bb5 {[%emt 0:05:23]} Qc7 {[%emt 0:01:26]} 14. h3 {[%emt 0:01:02]} Bb7 {[%emt 0:02:10]} 15. Nf5 {[%emt 0:01:15]} Be5 {[%emt 0:01:47]} 16. Bd4 {[%emt 0:00:42]} a6 {[%emt 0:00:50]} 17. Be2 {[%emt 0:01:02]} Rad8 {[%emt 0:03:47]} 18. Ne3 {[%emt 0:02:34]} f5 {[%emt 0:01:11]} 19. Bf3 {[%emt 0:02:14]} Rf6 {[%emt 0:02:03]} 20. Bxe4 {[%emt 0:03:30]} Nxe4 {[%emt 0:02:56]} 21. Bxe5 {[%emt 0:00:00]} Qxe5 {[%emt 0:00:08]} 22. Qd4 {[%emt 0:00:00]} Qc7 {[%emt 0:01:35]} 23. Nd2 {[%emt 0:00:17]} h5 {[%emt 0:06:13]} 24. f4 {[%emt 0:03:01]} Ng3 {[%emt 0:01:14]} 25. Rf2 {[%emt 0:01:06]} Re6 {[%emt 0:04:02]} 26. Kh2 {[%emt 0:01:46]} h4 {[%emt 0:03:02]} 27. Qd3 {[%emt 0:01:28]} Qc5 {[%emt 0:06:49]} 28. Rf3 {[%emt 0:04:20]} d4 {[%emt 0:00:20]} 29. Nc2 {[%emt 0:02:52]} Bxf3 {[%emt 0:03:08]} 30. Nxf3 {[%emt 0:00:11]} Qd6 {[%emt 0:03:40]} 31. Qxd4 {[%emt 0:01:49]} Ne2 {[%emt 0:03:59]} 32. Qxd6 {[%emt 0:00:18]} Rdxd6 {[%emt 0:01:07]} 33. Ncd4 {[%emt 0:00:38]} Re4 {[%emt 0:01:29]} 34. Nxf5 {[%emt 0:00:40]} Rf6 {[%emt 0:01:41]} 35. N5xh4 {[%emt 0:00:14]} Rfxf4 {[%emt 0:02:32]} 36. g3 {[%emt 0:02:12]} Rf6 {[%emt 0:01:08]} 37. Rd1 {[%emt 0:00:08]} Re8 {[%emt 0:00:52]} 38. Kg2 {[%emt 0:01:20]} Ref8 {[%emt 0:01:05]} 39. Re1 {[%emt 0:00:55]} Re6 {[%emt 0:02:34]} 40. Kf2 {[%emt 0:01:00]} g5 {[%emt 0:00:20]} 41. Rxe2 {[%emt 0:30:07]} Rxe2+ {[%emt 0:30:05]} 42. Kxe2 {[%emt 0:00:36]} gxh4 {[%emt 0:00:02]} 43. Nxh4 {[%emt 0:00:10]} Kg7 {[%emt 0:00:22]} 44. Nf3 {[%emt 0:00:18]} Re8+ {[%emt 0:00:21]} 45. Kf2 {[%emt 0:00:08]} Kf6 {[%emt 0:00:54]} 46. g4 {[%emt 0:00:07]} Re4 {[%emt 0:00:46]} 47. Nd2 {[%emt 0:01:05]} Ra4 {[%emt 0:00:56]} 48. a3 {[%emt 0:00:06]} Ra5 {[%emt 0:06:23]} 49. Ne4+ {[%emt 0:03:32]} Ke6 {[%emt 0:01:09]} 50. Ke3 {[%emt 0:00:55]} Rd5 {[%emt 0:01:02]} 51. Nf2 {[%emt 0:00:32]} Re5+ {[%emt 0:00:30]} 52. Kd2 {[%emt 0:00:30]} Kf6 {[%emt 0:00:39]} 53. h4 {[%emt 0:00:21]} Kg6 {[%emt 0:01:48]} 54. c4 {[%emt 0:01:13]} Kh6 {[%emt 0:01:30]} 55. b4 {[%emt 0:01:00]} Kg6 {[%emt 0:00:22]} 56. Kd3 {[%emt 0:00:27]} Re1 {[%emt 0:00:40]} 57. c5 {[%emt 0:00:04]} b5 {[%emt 0:01:13]} 58. Kd4 {[%emt 0:02:17]} Ra1 {[%emt 0:01:21]} 59. Nd3 {[%emt 0:00:40]} Rf1 {[%emt 0:01:00]} 60. c6 {[%emt 0:00:09]} Rf8 {[%emt 0:01:10]} 61. Kc5 {[%emt 0:00:27]} Kf6 {[%emt 0:00:27]} 62. Kb6 {[%emt 0:01:29]} Ke6 {[%emt 0:00:58]} 63. Nc5+ {[%emt 0:00:20]} Kd5 {[%emt 0:00:46]} 64. c7 {[%emt 0:00:10]} Kd6 {[%emt 0:00:27]} 65. Kb7 {[%emt 0:00:13]} Rf7 {[%emt 0:00:19]} 66. Nxa6 {[%emt 0:00:06]} Rh7 {[%emt 0:02:19]} 67. h5 {[%emt 0:00:04]} Rg7 {[%emt 0:00:55]} 68. h6 {[%emt 0:00:28]} Rh7 {[%emt 0:01:04]} 69. g5 {[%emt 0:00:06]} Re7 {[%emt 0:01:53]} 70. g6 {[%emt 0:00:09]} Rd7 {[%emt 0:00:12]} 71. h7 {[%emt 0:00:03]} Rg7 {[%emt 0:00:58]} 72. h8=Q {[%emt 0:00:07]} Rxg6 {[%emt 0:00:24]} 73. c8=Q {[%emt 0:00:09]} Re6 {[%emt 0:00:13]} 74. Qcd8# {[%emt 0:00:17] Kd5} 1-0

[Event "WCCC U10 2019"]
[Site "Weifang"]
[Date "2019.08.21"]
[Round "1.10"]
[White "Yang, Siyuan"]
[Black "Efimov, Leonid"]
[Result "0-1"]
[ECO "D02"]
[WhiteElo "1234"]
[BlackElo "1773"]
[Annotator "NA"]
[PlyCount "156"]
[EventDate "2019.08.21"]
[EventType "swiss"]
[EventCountry "CHN"]
[SourceTitle "playchess.com"]
[Source "ChessBase"]
[SourceQuality "1"]
[TimeControl "40/5400+30:1800+30"]

1. Nf3 {[%emt 0:00:00]} d5 {[%emt 0:00:00]} 2. g3 {[%emt 0:00:00]} c6 {[%emt 0:00:17]} 3. Bg2 {[%emt 0:00:00]} Bg4 {[%emt 0:00:40]} 4. d4 {[%emt 0:00:00]} Nf6 {[%emt 0:00:38]} 5. O-O {[%emt 0:00:23]} Nbd7 {[%emt 0:01:06]} 6. c4 {[%emt 0:01:18]} dxc4 {[%emt 0:13:45]} 7. Nbd2 {[%emt 0:00:29]} b5 {[%emt 0:06:08]} 8. a4 {[%emt 0:00:04]} a6 {[%emt 0:02:43]} 9. Qc2 {[%emt 0:01:02]} Nd5 {[%emt 0:09:34]} 10. h3 {[%emt 0:01:11]} Bh5 {[%emt 0:03:11]} 11. b3 {[%emt 0:02:40]} c3 {[%emt 0:03:51]} 12. Nb1 {[%emt 0:00:04]} b4 {[%emt 0:00:32]} 13. e4 {[%emt 0:00:42]} N5f6 {[%emt 0:02:21]} 14. g4 {[%emt 0:00:44]} Bg6 {[%emt 0:03:37]} 15. Nh4 {[%emt 0:00:06]} Nb6 {[%emt 0:06:17]} 16. Be3 {[%emt 0:00:26]} e6 {[%emt 0:16:38]} 17. g5 {[%emt 0:02:08]} Nfd5 {[%emt 0:05:05]} 18. Nxg6 {[%emt 0:01:18]} Nxe3 {[%emt 0:00:37]} 19. fxe3 {[%emt 0:00:01]} hxg6 {[%emt 0:00:46]} 20. Qf2 {[%emt 0:00:01]} Ra7 {[%emt 0:01:50]} 21. h4 {[%emt 0:00:26]} e5 {[%emt 0:08:21]} 22. Ra2 {[%emt 0:02:01]} Bd6 {[%emt 0:01:01]} 23. a5 {[%emt 0:01:29]} Nc8 {[%emt 0:00:48]} 24. Ra4 {[%emt 0:00:55]} Qe7 {[%emt 0:00:38]} 25. Bh3 {[%emt 0:03:28]} O-O {[%emt 0:00:32]} 26. Qe2 {[%emt 0:01:01]} exd4 {[%emt 0:02:39]} 27. exd4 {[%emt 0:00:11]} c5 {[%emt 0:00:15]} 28. d5 {[%emt 0:02:30]} Qe5 {[%emt 0:00:34]} 29. Rf3 {[%emt 0:02:05]} Ne7 {[%emt 0:00:48]} 30. Re3 {[%emt 0:00:23]} c4 {[%emt 0:00:12]} 31. bxc4 {[%emt 0:01:02]} Bc5 {[%emt 0:00:17]} 32. Nxc3 {[%emt 0:00:33]} Qxc3 {[%emt 0:00:50]} 33. Kf2 {[%emt 0:00:04]} Bxe3+ {[%emt 0:00:35]} 34. Qxe3 {[%emt 0:00:03]} Qc2+ {[%emt 0:00:10]} 35. Kf3 {[%emt 0:00:04]} Qxa4 {[%emt 0:00:06]} 36. Qxa7 {[%emt 0:00:03]} b3 {[%emt 0:00:22]} 37. Qb7 {[%emt 0:00:58]} Qxc4 {[%emt 0:00:22]} 38. d6 {[%emt 0:00:07]} Qd3+ {[%emt 0:00:12]} 39. Kg2 {[%emt 0:00:36]} Qxd6 {[%emt 0:00:08]} 40. Qxb3 {[%emt 0:00:07]} Qe5 {[%emt 0:00:10]} 41. Qb4 {[%emt 0:30:10]} Nc6 {[%emt 0:30:19]} 42. Qc4 {[%emt 0:00:14]} Nxa5 {[%emt 0:00:08]} 43. Qxa6 {[%emt 0:00:08]} Qxe4+ {[%emt 0:00:14]} 44. Kh2 {[%emt 0:00:01]} Qc2+ {[%emt 0:01:19]} 45. Kg3 {[%emt 0:00:16]} Nc4 {[%emt 0:00:38]} 46. Qc6 {[%emt 0:00:27]} Qd3+ {[%emt 0:00:18]} 47. Kh2 {[%emt 0:00:08]} Qd6+ {[%emt 0:00:25]} 48. Qxd6 {[%emt 0:00:24]} Nxd6 {[%emt 0:00:02]} 49. Kg3 {[%emt 0:00:06]} Rb8 {[%emt 0:00:19]} 50. Bg4 {[%emt 0:00:11]} Rb3+ {[%emt 0:00:11]} 51. Kf4 {[%emt 0:00:38]} Rb4+ 52. Kf3 {[%emt 0:00:00]} Nf5 {[%emt 0:00:37]} 53. h5 {[%emt 0:00:00]} Rxg4 {[%emt 0:01:37]} 54. Kxg4 {[%emt 0:00:00]} gxh5+ {[%emt 0:00:18]} 55. Kxf5 {[%emt 0:00:00]} g6+ {[%emt 0:00:07]} 56. Kf4 {[%emt 0:00:00]} Kf8 {[%emt 0:00:05]} 57. Ke5 {[%emt 0:00:02]} Ke7 {[%emt 0:00:05]} 58. Kf4 {[%emt 0:00:03]} Ke6 {[%emt 0:00:11]} 59. Ke4 {[%emt 0:00:06]} f5+ {[%emt 0:00:35]} 60. gxf6 {[%emt 0:00:08]} Kxf6 {[%emt 0:00:08]} 61. Kf4 {[%emt 0:00:08]} g5+ {[%emt 0:00:07]} 62. Kg3 {[%emt 0:00:04]} Kf5 {[%emt 0:00:05]} 63. Kf3 {[%emt 0:00:04]} h4 {[%emt 0:00:03]} 64. Kg2 {[%emt 0:00:05]} Kf4 {[%emt 0:00:14]} 65. Kf2 {[%emt 0:00:12]} h3 {[%emt 0:00:15]} 66. Kg1 {[%emt 0:00:06]} g4 {[%emt 0:00:23]} 67. Kf2 {[%emt 0:00:15]} g3+ {[%emt 0:00:29]} 68. Kg1 {[%emt 0:00:14]} h2+ {[%emt 0:01:01]} 69. Kh1 {[%emt 0:00:03]} Kf5 {[%emt 0:00:45]} 70. Kg2 {[%emt 0:00:02]} Ke4 {[%emt 0:00:11]} 71. Kh1 {[%emt 0:00:04]} Kf4 {[%emt 0:00:10]} 72. Kg2 {[%emt 0:00:04]} h1=Q+ {[%emt 0:00:14]} 73. Kxh1 {[%emt 0:00:05]} Kf3 {[%emt 0:00:05]} 74. Kg1 {[%emt 0:00:04]} g2 {[%emt 0:00:04]} 75. Kh2 {[%emt 0:00:03]} Kf2 {[%emt 0:00:10]} 76. Kh3 {[%emt 0:00:19]} g1=Q {[%emt 0:00:19]} 77. Kh4 {[%emt 0:00:00]} Qg6 {[%emt 0:00:33]} 78. Kh3 {[%emt 0:00:00]} Qg3# {[%emt 0:00:07]} 0-1

[Event "WCCC U10 2019"]
[Site "Weifang"]
[Date "2019.08.22"]
[Round "2.1"]
[White "Jiang, Qiyu"]
[Black "Materia, Marco"]
[Result "0-1"]
[ECO "E05"]
[WhiteElo "1593"]
[BlackElo "2236"]
[Annotator "NA"]
[PlyCount "120"]
[EventDate "2019.08.21"]
[EventType "swiss"]
[EventCountry "CHN"]
[SourceTitle "playchess.com"]
[Source "ChessBase"]
[SourceQuality "1"]
[TimeControl "40/5400+30:1800+30"]

1. Nf3 {[%emt 0:00:00]} d5 {[%emt 0:00:00]} 2. g3 {[%emt 0:00:00]} Nf6 {[%emt 0:00:00]} 3. Bg2 {[%emt 0:00:00]} e6 {[%emt 0:00:00]} 4. O-O {[%emt 0:00:12]} Be7 {[%emt 0:00:00]} 5. d4 {[%emt 0:01:15]} O-O {[%emt 0:00:05]} 6. c4 {[%emt 0:00:05]} dxc4 {[%emt 0:00:07]} 7. Ne5 {[%emt 0:00:04]} Nc6 {[%emt 0:00:05]} 8. Bxc6 {[%emt 0:00:08]} bxc6 {[%emt 0:00:10]} 9. Nxc6 {[%emt 0:00:04]} Qe8 {[%emt 0:00:12]} 10. Nxe7+ {[%emt 0:00:06]} Qxe7 {[%emt 0:00:08]} 11. Qc2 {[%emt 0:03:45]} c5 {[%emt 0:00:09]} 12. dxc5 {[%emt 0:07:26]} Qxc5 {[%emt 0:01:27]} 13. Be3 {[%emt 0:04:54]} Qh5 {[%emt 0:03:50]} 14. f3 {[%emt 0:04:14]} e5 {[%emt 0:02:14]} 15. Nd2 {[%emt 0:21:37]} Be6 {[%emt 0:04:15]} 16. Nxc4 {[%emt 0:06:58]} Rfc8 {[%emt 0:04:12]} 17. b3 {[%emt 0:00:32]} Bd5 {[%emt 0:11:53]} 18. Bc1 {[%emt 0:13:51]} Rc7 {[%emt 0:23:05]} 19. Bb2 {[%emt 0:02:40]} Rac8 {[%emt 0:00:56]} 20. Rac1 {[%emt 0:01:24]} Bxc4 {[%emt 0:08:46]} 21. bxc4 {[%emt 0:00:06]} Rxc4 {[%emt 0:00:34]} 22. Qb3 {[%emt 0:08:25]} Rxc1 {[%emt 0:01:46]} 23. Rxc1 {[%emt 0:00:11]} Qf5 {[%emt 0:00:30]} 24. Rxc8+ {[%emt 0:01:07]} Qxc8 {[%emt 0:00:09]} 25. Bxe5 {[%emt 0:02:54]} Qc5+ {[%emt 0:00:19]} 26. Kg2 {[%emt 0:00:24]} Qxe5 {[%emt 0:00:06]} 27. Qc4 {[%emt 0:00:05]} g6 {[%emt 0:00:24]} 28. Kf2 {[%emt 0:01:31]} Kg7 {[%emt 0:00:16]} 29. Qa6 {[%emt 0:00:32]} Qc5+ {[%emt 0:00:25]} 30. Kg2 {[%emt 0:00:08]} Nd5 {[%emt 0:00:57]} 31. Qd3 {[%emt 0:01:41]} Ne3+ {[%emt 0:00:34]} 32. Kf2 {[%emt 0:01:50]} Nc2+ {[%emt 0:00:43]} 33. Kf1 {[%emt 0:00:35]} h6 {[%emt 0:00:47]} 34. h4 {[%emt 0:00:52]} h5 {[%emt 0:01:29]} 35. Qd2 {[%emt 0:02:00]} Ne3+ {[%emt 0:00:23]} 36. Ke1 {[%emt 0:00:43]} Nf5 {[%emt 0:02:05]} 37. Qb2+ {[%emt 0:02:29]} Qd4 {[%emt 0:01:00]} 38. Qxd4+ {[%emt 0:04:47]} Nxd4 {[%emt 0:00:07]} 39. Kd2 {[%emt 0:00:17]} Nf5 {[%emt 0:01:21]} 40. g4 {[%emt 0:00:34]} Nxh4 {[%emt 0:00:32]} 41. Ke3 {[%emt 0:30:16]} Ng2+ {[%emt 0:30:30]} 42. Kf2 {[%emt 0:00:06]} Nf4 {[%emt 0:00:05]} 43. e3 {[%emt 0:00:04]} Nd5 {[%emt 0:00:06]} 44. gxh5 {[%emt 0:00:07]} gxh5 {[%emt 0:00:06]} 45. e4 {[%emt 0:00:04]} Nc3 {[%emt 0:00:23]} 46. a3 {[%emt 0:00:04]} Kf6 {[%emt 0:00:31]} 47. Ke3 {[%emt 0:00:07]} Kg5 {[%emt 0:00:10]} 48. Kd3 {[%emt 0:00:51]} Kf4 {[%emt 0:00:29]} 49. Kxc3 {[%emt 0:00:07]} h4 {[%emt 0:00:05]} 50. a4 {[%emt 0:00:09]} h3 {[%emt 0:00:05]} 51. a5 {[%emt 0:00:14]} h2 {[%emt 0:00:05]} 52. Kb4 {[%emt 0:00:02]} h1=Q {[%emt 0:00:20]} 53. Kb5 {[%emt 0:00:04]} Qf1+ {[%emt 0:00:08]} 54. Kc6 {[%emt 0:00:09]} Qa6+ {[%emt 0:00:06]} 55. Kd7 {[%emt 0:00:04]} Kxf3 {[%emt 0:00:05]} 56. Ke7 {[%emt 0:00:11]} Qe6+ {[%emt 0:00:11]} 57. Kf8 {[%emt 0:00:19]} Kxe4 {[%emt 0:00:13]} 58. a6 {[%emt 0:00:08]} Kf5 {[%emt 0:00:19]} 59. Kg8 {[%emt 0:00:22]} Kf6 {[%emt 0:00:09]} 60. Kf8 {[%emt 0:00:23]} Qc8# {[%emt 0:00:06]} 0-1

[Event "WCCC U10 2019"]
[Site "Weifang"]
[Date "2019.08.22"]
[Round "2.2"]
[White "Mehrotra, Ekansh"]
[Black "Ilamparthi A R"]
[Result "0-1"]
[ECO "B76"]
[WhiteElo "1585"]
[BlackElo "1984"]
[Annotator "NA"]
[PlyCount "108"]
[EventDate "2019.08.21"]
[EventType "swiss"]
[EventCountry "CHN"]
[SourceTitle "playchess.com"]
[Source "ChessBase"]
[SourceQuality "1"]
[TimeControl "40/5400+30:1800+30"]

1. e4 {[%emt 0:00:00]} c5 {[%emt 0:00:00]} 2. Nf3 {[%emt 0:00:00]} d6 {[%emt 0:00:00]} 3. d4 {[%emt 0:00:00]} cxd4 {[%emt 0:00:00]} 4. Nxd4 {[%emt 0:00:00]} Nf6 {[%emt 0:00:08]} 5. Nc3 {[%emt 0:00:00]} g6 {[%emt 0:00:09]} 6. Be3 {[%emt 0:00:09]} Bg7 {[%emt 0:00:09]} 7. f3 {[%emt 0:00:16]} O-O {[%emt 0:00:11]} 8. Qd2 {[%emt 0:00:09]} Nc6 {[%emt 0:00:07]} 9. O-O-O {[%emt 0:00:23]} d5 {[%emt 0:00:08]} 10. Kb1 {[%emt 0:00:27]} Nxd4 {[%emt 0:00:28]} 11. e5 {[%emt 0:00:15]} Nf5 {[%emt 0:01:37]} 12. exf6 {[%emt 0:00:16]} Bxf6 {[%emt 0:00:10]} 13. Nxd5 {[%emt 0:00:32]} Qxd5 {[%emt 0:10:50]} 14. Qxd5 {[%emt 0:00:14]} Nxe3 {[%emt 0:00:04]} 15. Qd3 {[%emt 0:00:20]} Nxd1 {[%emt 0:00:11]} 16. Qxd1 {[%emt 0:00:12]} Be6 {[%emt 0:00:06]} 17. Bd3 {[%emt 0:07:59]} Rfd8 {[%emt 0:02:18]} 18. Qe2 {[%emt 0:01:07]} Rac8 {[%emt 0:01:46]} 19. h4 {[%emt 0:01:18]} Rc5 {[%emt 0:04:48]} 20. g4 {[%emt 0:01:05]} Rd6 {[%emt 0:10:36]} 21. h5 {[%emt 0:02:15]} Rb6 {[%emt 0:21:15]} 22. b3 {[%emt 0:01:49]} Rb4 {[%emt 0:14:24]} 23. hxg6 {[%emt 0:02:10]} hxg6 {[%emt 0:00:07]} 24. Bxg6 {[%emt 0:04:33]} a5 {[%emt 0:15:09]} 25. Bh7+ {[%emt 0:11:49]} Kf8 {[%emt 0:01:30]} 26. Bf5 {[%emt 0:17:01]} Bxf5 {[%emt 0:02:06]} 27. gxf5 {[%emt 0:00:08]} Rd4 {[%emt 0:02:08]} 28. Qh2 {[%emt 0:02:37]} Rcd5 {[%emt 0:00:44]} 29. Qe2 {[%emt 0:04:34]} Rd2 {[%emt 0:01:29]} 30. Qe1 {[%emt 0:00:59]} a4 {[%emt 0:01:14]} 31. Kc1 {[%emt 0:07:48]} Bg5 {[%emt 0:03:02]} 32. f4 {[%emt 0:01:46]} Bxf4 {[%emt 0:02:39]} 33. Qh4 {[%emt 0:01:08]} Rd1+ {[%emt 0:00:28]} 34. Kb2 {[%emt 0:00:15]} a3+ {[%emt 0:00:03]} 35. Kxa3 {[%emt 0:01:06]} Bc1+ {[%emt 0:00:07]} 36. Kb4 {[%emt 0:00:20]} R1d4+ {[%emt 0:00:09]} 37. Qxd4 {[%emt 0:00:12]} Rxd4+ {[%emt 0:00:03]} 38. Kc3 {[%emt 0:00:21]} Be3 {[%emt 0:00:23]} 39. Rh3 {[%emt 0:00:35]} Bg1 {[%emt 0:00:21]} 40. Rg3 {[%emt 0:00:44]} Rd1 {[%emt 0:00:07]} 41. a4 {[%emt 0:31:12]} Rf1 {[%emt 0:30:26]} 42. Rg5 {[%emt 0:01:06]} Be3 {[%emt 0:00:22]} 43. Rh5 {[%emt 0:00:10]} Kg7 {[%emt 0:00:06]} 44. Kd3 {[%emt 0:00:30]} Ba7 {[%emt 0:00:37]} 45. b4 {[%emt 0:00:18]} Rf4 {[%emt 0:00:08]} 46. c4 {[%emt 0:00:09]} Kf6 {[%emt 0:00:13]} 47. a5 {[%emt 0:00:09]} Rxf5 {[%emt 0:00:44]} 48. Rxf5+ {[%emt 0:00:12]} Kxf5 {[%emt 0:00:06]} 49. b5 {[%emt 0:00:07]} Bc5 {[%emt 0:00:36]} 50. b6 {[%emt 0:00:08]} Ke5 {[%emt 0:00:10]} 51. a6 {[%emt 0:00:13]} bxa6 {[%emt 0:00:04]} 52. b7 {[%emt 0:00:04]} Bd6 {[%emt 0:00:04]} 53. c5 {[%emt 0:00:06]} Bb8 {[%emt 0:00:03]} 54. c6 {[%emt 0:00:13]} f5 {[%emt 0:00:02] Kd4+} 0-1